[Event "Titled Tuesday Blitz August 08 Late 2023"]
[White "Przybylski, Wojciech"]
[Black "Lacey, Patrick"]
[WhiteFideId "1117599"]
[BlackFideId "2032007"]
[WhiteElo "2558"]
[BlackElo "2415"]
[Result "1-0"]
[Round "5"]
[TimeControl "180+1"]
[Date "2023.08.08"]
[WhiteClock "0:00:14"]
[BlackClock "0:00:00"]
[Board "90"]

1. d4 {[%clk 0:03:00]}  d5 {[%clk 0:02:59]} 2. g3 {[%clk 0:03:00]}  Nc6 {[%clk 0:02:57]} 3. Bg2 {[%clk 0:02:59]}  Nf6 {[%clk 0:02:58]} 4. e3 {[%clk 0:02:58]}  Bg4 {[%clk 0:02:58]} 5. Nf3 {[%clk 0:02:57]}  e5 {[%clk 0:02:54]} 6. h3 {[%clk 0:02:56]}  Bh5 {[%clk 0:02:48]} 7. g4 {[%clk 0:02:55]}  e4 {[%clk 0:02:49]} 8. gxh5 {[%clk 0:02:54]}  exf3 {[%clk 0:02:49]} 9. Bxf3 {[%clk 0:02:54]}  Bd6 {[%clk 0:02:42]} 10. Rg1 {[%clk 0:02:53]}  O-O {[%clk 0:02:38]} 11. Nc3 {[%clk 0:02:48]}  h6 {[%clk 0:02:15]} 12. Bd2 {[%clk 0:02:43]}  Ne7 {[%clk 0:01:56]} 13. Qe2 {[%clk 0:02:41]}  Kh8 {[%clk 0:01:52]} 14. O-O-O {[%clk 0:02:35]}  c6 {[%clk 0:01:51]} 15. e4 {[%clk 0:02:26]}  dxe4 {[%clk 0:01:50]} 16. Nxe4 {[%clk 0:02:26]}  Nxe4 {[%clk 0:01:48]} 17. Qxe4 {[%clk 0:02:21]}  Nd5 {[%clk 0:01:32]} 18. c4 {[%clk 0:01:57]}  Nf6 {[%clk 0:01:28]} 19. Qf5 {[%clk 0:01:55]}  Qc8 {[%clk 0:01:21]} 20. Qxc8 {[%clk 0:01:41]}  Raxc8 {[%clk 0:01:22]} 21. Rde1 {[%clk 0:01:40]}  Rcd8 {[%clk 0:01:20]} 22. Kc2 {[%clk 0:01:37]}  Rd7 {[%clk 0:01:11]} 23. a3 {[%clk 0:01:32]}  Rfd8 {[%clk 0:01:11]} 24. Bc3 {[%clk 0:01:32]}  Bc7 {[%clk 0:01:03]} 25. b4 {[%clk 0:01:30]}  Bb6 {[%clk 0:01:02]} 26. c5 {[%clk 0:01:21]}  Bc7 {[%clk 0:01:02]} 27. Bb2 {[%clk 0:01:13]}  Bf4 {[%clk 0:01:00]} 28. Re2 {[%clk 0:01:10]}  Kg8 {[%clk 0:00:48]} 29. Rge1 {[%clk 0:01:06]}  Kf8 {[%clk 0:00:49]} 30. a4 {[%clk 0:01:05]}  Bg5 {[%clk 0:00:43]} 31. b5 {[%clk 0:01:02]}  Nd5 {[%clk 0:00:43]} 32. Re4 {[%clk 0:00:57]}  Bf6 {[%clk 0:00:43]} 33. Bg4 {[%clk 0:00:51]}  Rc7 {[%clk 0:00:38]} 34. Kb3 {[%clk 0:00:50]}  b6 {[%clk 0:00:31]} 35. Ba3 {[%clk 0:00:48]}  Be7 {[%clk 0:00:14]} 36. bxc6 {[%clk 0:00:40]}  bxc5 {[%clk 0:00:12]} 37. dxc5 {[%clk 0:00:35]}  Rxc6 {[%clk 0:00:11]} 38. Rc4 {[%clk 0:00:34]}  Rb8+ {[%clk 0:00:10]} 39. Ka2 {[%clk 0:00:33]}  Bf6 {[%clk 0:00:07]} 40. Rec1 {[%clk 0:00:32]}  a5 {[%clk 0:00:06]} 41. Bf3 {[%clk 0:00:29]}  Rd8 {[%clk 0:00:06]} 42. R1c2 {[%clk 0:00:25]}  Rc7 {[%clk 0:00:05]} 43. c6+ {[%clk 0:00:25]}  Ne7 {[%clk 0:00:03]} 44. Rc5 {[%clk 0:00:22]}  Ke8 {[%clk 0:00:03]} 45. Rxa5 {[%clk 0:00:20]}  Nc8 {[%clk 0:00:02]} 46. Rd5 {[%clk 0:00:19]}  Be7 {[%clk 0:00:03]} 47. Re5 {[%clk 0:00:17]}  Kf8 {[%clk 0:00:03]} 48. Bxe7+ {[%clk 0:00:16]}  Nxe7 {[%clk 0:00:03]} 49. Be2 {[%clk 0:00:16]}  Rxc6 {[%clk 0:00:02]} 50. Rxc6 {[%clk 0:00:15]}  Nxc6 {[%clk 0:00:02]} 51. Re4 {[%clk 0:00:16]}  Rd2+ {[%clk 0:00:01]} 52. Kb3 {[%clk 0:00:16]}  Rd5 {[%clk 0:00:01]} 53. Bb5 {[%clk 0:00:14]}  Nd4+ {[%clk 0:00:02]} 54. Kc4 {[%clk 0:00:14]}  Nxb5 {[%clk 0:00:01]} 55. axb5 {[%clk 0:00:14]}  Rd8 {[%clk 0:00:02]} 56. Kc5 {[%clk 0:00:14]}  f5 {[%clk 0:00:01]} 57. Re5 {[%clk 0:00:14]}  Kf7 {[%clk 0:00:02]} 58. b6 {[%clk 0:00:14]}  Kf6 {[%clk 0:00:00]} 59. f4 {[%clk 0:00:14]} 1-0


[Site "https://www.chess.com"]

[Event "Titled Tuesday Blitz August 08 Late 2023"]
[White "Keleberda, Tymur"]
[Black "Slovineanu, Viacheslav"]
[WhiteFideId "14174294"]
[BlackFideId "13900510"]
[WhiteElo "2550"]
[BlackElo "2414"]
[Result "1-0"]
[Round "5"]
[TimeControl "180+1"]
[Date "2023.08.08"]
[WhiteClock "0:02:15"]
[BlackClock "0:01:13"]
[Board "91"]

1. e4 {[%clk 0:03:00]}  e5 {[%clk 0:02:58]} 2. Nf3 {[%clk 0:03:01]}  f5 {[%clk 0:02:57]} 3. Nxe5 {[%clk 0:02:56]}  Qf6 {[%clk 0:02:56]} 4. Nc4 {[%clk 0:02:49]}  fxe4 {[%clk 0:02:55]} 5. Nc3 {[%clk 0:02:49]}  Qg6 {[%clk 0:02:55]} 6. d3 {[%clk 0:02:46]}  Bb4 {[%clk 0:02:55]} 7. Bd2 {[%clk 0:02:44]}  Bxc3 {[%clk 0:02:54]} 8. Bxc3 {[%clk 0:02:45]}  Nf6 {[%clk 0:02:27]} 9. Ne3 {[%clk 0:02:30]}  O-O {[%clk 0:02:21]} 10. dxe4 {[%clk 0:02:30]}  Qxe4 {[%clk 0:02:03]} 11. Bd3 {[%clk 0:02:29]}  Qe8 {[%clk 0:02:01]} 12. O-O {[%clk 0:02:28]}  d5 {[%clk 0:01:59]} 13. Bxf6 {[%clk 0:02:25]}  Rxf6 {[%clk 0:01:52]} 14. Nxd5 {[%clk 0:02:25]}  Rh6 {[%clk 0:01:42]} 15. Re1 {[%clk 0:02:21]}  Qh5 {[%clk 0:01:17]} 16. Qxh5 {[%clk 0:02:19]}  Rxh5 {[%clk 0:01:13]} 17. Nxc7 {[%clk 0:02:15]} 1-0


[Site "https://www.chess.com"]

[Event "Titled Tuesday Blitz August 08 Late 2023"]
[White "maksimys18"]
[Black "Czerw, Dawid"]
[BlackFideId "1145746"]
[WhiteElo "2412"]
[BlackElo "2538"]
[Result "1-0"]
[Round "5"]
[TimeControl "180+1"]
[Date "2023.08.08"]
[WhiteClock "0:01:21"]
[BlackClock "0:01:44"]
[Board "93"]

1. d4 {[%clk 0:03:00]}  Nf6 {[%clk 0:02:59]} 2. Nf3 {[%clk 0:03:01]}  c5 {[%clk 0:02:59]} 3. c4 {[%clk 0:03:00]}  cxd4 {[%clk 0:02:59]} 4. Nxd4 {[%clk 0:03:00]}  Nc6 {[%clk 0:03:00]} 5. Nc3 {[%clk 0:03:01]}  g6 {[%clk 0:03:00]} 6. Bg5 {[%clk 0:03:00]}  Bg7 {[%clk 0:03:00]} 7. e3 {[%clk 0:03:01]}  O-O {[%clk 0:03:01]} 8. Be2 {[%clk 0:03:00]}  d6 {[%clk 0:03:01]} 9. O-O {[%clk 0:03:00]}  Bd7 {[%clk 0:03:02]} 10. Bf3 {[%clk 0:02:58]}  a6 {[%clk 0:03:02]} 11. Qc2 {[%clk 0:02:56]}  Rc8 {[%clk 0:03:03]} 12. b3 {[%clk 0:02:55]}  Ne5 {[%clk 0:03:03]} 13. Bxb7 {[%clk 0:02:52]}  Rc7 {[%clk 0:03:02]} 14. Bxa6 {[%clk 0:02:48]}  h6 {[%clk 0:03:02]} 15. Bh4 {[%clk 0:02:47]}  g5 {[%clk 0:03:02]} 16. Bg3 {[%clk 0:02:47]}  Nh5 {[%clk 0:03:01]} 17. Nd5 {[%clk 0:02:42]}  Ra7 {[%clk 0:02:57]} 18. Bb5 {[%clk 0:02:41]}  Nxg3 {[%clk 0:02:56]} 19. hxg3 {[%clk 0:02:41]}  e6 {[%clk 0:02:56]} 20. Nc3 {[%clk 0:02:29]}  Ng4 {[%clk 0:02:44]} 21. Bxd7 {[%clk 0:02:27]}  Rxd7 {[%clk 0:02:45]} 22. a4 {[%clk 0:02:22]}  Qf6 {[%clk 0:02:44]} 23. a5 {[%clk 0:02:17]}  d5 {[%clk 0:02:30]} 24. a6 {[%clk 0:02:14]}  dxc4 {[%clk 0:02:30]} 25. bxc4 {[%clk 0:02:13]}  Ra8 {[%clk 0:02:26]} 26. Qe4 {[%clk 0:02:08]}  Rda7 {[%clk 0:02:05]} 27. Qxg4 {[%clk 0:02:05]}  Rxa6 {[%clk 0:02:05]} 28. Rxa6 {[%clk 0:02:05]}  Rxa6 {[%clk 0:02:06]} 29. c5 {[%clk 0:02:02]}  Qe5 {[%clk 0:02:04]} 30. c6 {[%clk 0:01:59]}  Qc5 {[%clk 0:02:05]} 31. Ncb5 {[%clk 0:01:54]}  Ra4 {[%clk 0:02:02]} 32. c7 {[%clk 0:01:37]}  Rc4 {[%clk 0:01:57]} 33. Qe4 {[%clk 0:01:33]}  Bxd4 {[%clk 0:01:52]} 34. exd4 {[%clk 0:01:29]}  Qxb5 {[%clk 0:01:49]} 35. Qa8+ {[%clk 0:01:28]}  Kg7 {[%clk 0:01:50]} 36. c8=Q {[%clk 0:01:27]}  Rc1 {[%clk 0:01:48]} 37. Qh8+ {[%clk 0:01:22]}  Kg6 {[%clk 0:01:44]} 38. Rxc1 {[%clk 0:01:21]} 1-0


[Site "https://www.chess.com"]

[Event "Titled Tuesday Blitz August 08 Late 2023"]
[White "Romero Ruscalleda, Josep"]
[Black "Bettalli, Francesco"]
[WhiteFideId "2231859"]
[BlackFideId "2816453"]
[WhiteElo "2407"]
[BlackElo "2531"]
[Result "1-0"]
[Round "5"]
[TimeControl "180+1"]
[Date "2023.08.08"]
[WhiteClock "0:00:19"]
[BlackClock "0:00:40"]
[Board "95"]

1. e4 {[%clk 0:03:00]}  e5 {[%clk 0:02:53]} 2. Nf3 {[%clk 0:03:00]}  Nf6 {[%clk 0:02:53]} 3. d4 {[%clk 0:02:51]}  Nxe4 {[%clk 0:02:52]} 4. Bd3 {[%clk 0:02:51]}  Nc6 {[%clk 0:02:50]} 5. dxe5 {[%clk 0:02:44]}  Nc5 {[%clk 0:02:38]} 6. Bc4 {[%clk 0:02:39]}  Ne6 {[%clk 0:02:36]} 7. Nc3 {[%clk 0:02:36]}  Bb4 {[%clk 0:02:27]} 8. Bd2 {[%clk 0:02:36]}  O-O {[%clk 0:02:24]} 9. a3 {[%clk 0:02:34]}  Ba5 {[%clk 0:02:20]} 10. O-O {[%clk 0:02:33]}  d6 {[%clk 0:02:18]} 11. exd6 {[%clk 0:02:28]}  Qxd6 {[%clk 0:02:18]} 12. Ne4 {[%clk 0:02:21]}  Qe7 {[%clk 0:02:14]} 13. Bxa5 {[%clk 0:02:05]}  Nxa5 {[%clk 0:02:15]} 14. Ba2 {[%clk 0:02:05]}  Nc6 {[%clk 0:02:06]} 15. Re1 {[%clk 0:02:04]}  b6 {[%clk 0:02:00]} 16. Neg5 {[%clk 0:01:57]}  Qf6 {[%clk 0:01:53]} 17. Nxe6 {[%clk 0:01:49]}  Bxe6 {[%clk 0:01:54]} 18. Bxe6 {[%clk 0:01:48]}  fxe6 {[%clk 0:01:54]} 19. c3 {[%clk 0:01:43]}  Rad8 {[%clk 0:01:52]} 20. Qe2 {[%clk 0:01:43]}  e5 {[%clk 0:01:49]} 21. Rad1 {[%clk 0:01:39]}  Rd6 {[%clk 0:01:46]} 22. Rxd6 {[%clk 0:01:26]}  Qxd6 {[%clk 0:01:47]} 23. Nxe5 {[%clk 0:01:18]}  Re8 {[%clk 0:01:45]} 24. Qc4+ {[%clk 0:01:15]}  Qe6 {[%clk 0:01:46]} 25. Nxc6 {[%clk 0:01:06]}  Qxc4 {[%clk 0:01:44]} 26. Rxe8+ {[%clk 0:01:05]}  Kf7 {[%clk 0:01:44]} 27. Ne5+ {[%clk 0:01:05]}  Kxe8 {[%clk 0:01:45]} 28. Nxc4 {[%clk 0:01:06]}  Ke7 {[%clk 0:01:43]} 29. Kf1 {[%clk 0:01:05]}  Ke6 {[%clk 0:01:42]} 30. Ke2 {[%clk 0:01:05]}  Kd5 {[%clk 0:01:43]} 31. Kd3 {[%clk 0:01:05]}  c5 {[%clk 0:01:42]} 32. Ne3+ {[%clk 0:01:04]}  Ke5 {[%clk 0:01:42]} 33. g3 {[%clk 0:01:04]}  g5 {[%clk 0:01:40]} 34. a4 {[%clk 0:01:01]}  h5 {[%clk 0:01:41]} 35. b4 {[%clk 0:01:00]}  g4 {[%clk 0:01:41]} 36. bxc5 {[%clk 0:00:58]}  bxc5 {[%clk 0:01:42]} 37. Nc4+ {[%clk 0:00:57]}  Kd5 {[%clk 0:01:42]} 38. a5 {[%clk 0:00:57]}  Kc6 {[%clk 0:01:37]} 39. Ke4 {[%clk 0:00:57]}  Kb5 {[%clk 0:01:38]} 40. Kd5 {[%clk 0:00:57]}  a6 {[%clk 0:01:36]} 41. Ne3 {[%clk 0:00:53]}  Kxa5 {[%clk 0:01:36]} 42. Kxc5 {[%clk 0:00:54]}  Ka4 {[%clk 0:01:36]} 43. Kc4 {[%clk 0:00:46]}  a5 {[%clk 0:01:29]} 44. Nf5 {[%clk 0:00:43]}  Ka3 {[%clk 0:01:28]} 45. Kb5 {[%clk 0:00:43]}  a4 {[%clk 0:01:28]} 46. Nd4 {[%clk 0:00:33]}  Kb2 {[%clk 0:01:25]} 47. Kxa4 {[%clk 0:00:33]}  Kxc3 {[%clk 0:01:26]} 48. Nf5 {[%clk 0:00:27]}  Kd3 {[%clk 0:01:18]} 49. Ng7 {[%clk 0:00:27]}  Ke2 {[%clk 0:00:55]} 50. Nxh5 {[%clk 0:00:27]}  Kxf2 {[%clk 0:00:55]} 51. Nf6 {[%clk 0:00:27]}  Kf3 {[%clk 0:00:47]} 52. Kb4 {[%clk 0:00:26]}  Kg2 {[%clk 0:00:48]} 53. Nxg4 {[%clk 0:00:26]}  Kh3 {[%clk 0:00:49]} 54. Kc3 {[%clk 0:00:24]}  Kxg4 {[%clk 0:00:49]} 55. Kd4 {[%clk 0:00:24]}  Kh3 {[%clk 0:00:50]} 56. Ke5 {[%clk 0:00:24]}  Kg4 {[%clk 0:00:51]} 57. Ke4 {[%clk 0:00:24]}  Kg5 {[%clk 0:00:51]} 58. Kf3 {[%clk 0:00:24]}  Kh5 {[%clk 0:00:52]} 59. g4+ {[%clk 0:00:23]}  Kg5 {[%clk 0:00:53]} 60. Kg3 {[%clk 0:00:24]}  Kg6 {[%clk 0:00:54]} 61. Kf4 {[%clk 0:00:24]}  Kh6 {[%clk 0:00:55]} 62. Kf5 {[%clk 0:00:24]}  Kg7 {[%clk 0:00:55]} 63. g5 {[%clk 0:00:24]}  Kf7 {[%clk 0:00:56]} 64. h4 {[%clk 0:00:24]}  Kg7 {[%clk 0:00:57]} 65. h5 {[%clk 0:00:23]}  Kf7 {[%clk 0:00:57]} 66. h6 {[%clk 0:00:22]}  Kg8 {[%clk 0:00:57]} 67. Kg6 {[%clk 0:00:22]}  Kh8 {[%clk 0:00:58]} 68. Kf6 {[%clk 0:00:21]}  Kg8 {[%clk 0:00:58]} 69. h7+ {[%clk 0:00:22]}  Kh8 {[%clk 0:00:54]} 70. Kf7 {[%clk 0:00:20]}  Kxh7 {[%clk 0:00:40]} 71. g6+ {[%clk 0:00:19]} 1-0


[Site "https://www.chess.com"]

[Event "Titled Tuesday Blitz August 08 Late 2023"]
[White "Mekhane, Adam"]
[Black "Herman, Daniel"]
[WhiteFideId "36050601"]
[BlackFideId "30935008"]
[WhiteElo "2531"]
[BlackElo "2405"]
[Result "0-1"]
[Round "5"]
[TimeControl "180+1"]
[Date "2023.08.08"]
[WhiteClock "0:00:00"]
[BlackClock "0:00:33"]
[Board "96"]

1. e4 {[%clk 0:02:51]}  e6 {[%clk 0:02:58]} 2. d4 {[%clk 0:02:50]}  d5 {[%clk 0:02:59]} 3. exd5 {[%clk 0:02:50]}  exd5 {[%clk 0:03:00]} 4. Nf3 {[%clk 0:02:50]}  Bd6 {[%clk 0:03:00]} 5. Bd3 {[%clk 0:02:49]}  Ne7 {[%clk 0:03:00]} 6. Nc3 {[%clk 0:02:50]}  c6 {[%clk 0:02:57]} 7. O-O {[%clk 0:02:49]}  O-O {[%clk 0:02:57]} 8. Ne2 {[%clk 0:02:50]}  Bf5 {[%clk 0:02:56]} 9. Bf4 {[%clk 0:02:48]}  Bxd3 {[%clk 0:02:50]} 10. Qxd3 {[%clk 0:02:48]}  Na6 {[%clk 0:02:50]} 11. c3 {[%clk 0:02:41]}  Nc7 {[%clk 0:02:49]} 12. h4 {[%clk 0:02:36]}  Ne6 {[%clk 0:02:47]} 13. Bxd6 {[%clk 0:02:33]}  Qxd6 {[%clk 0:02:48]} 14. h5 {[%clk 0:02:01]}  h6 {[%clk 0:02:44]} 15. Rae1 {[%clk 0:01:58]}  a5 {[%clk 0:02:42]} 16. Ne5 {[%clk 0:01:54]}  Ng5 {[%clk 0:02:05]} 17. Ng3 {[%clk 0:01:43]}  f5 {[%clk 0:02:03]} 18. f4 {[%clk 0:01:21]}  Ne4 {[%clk 0:02:03]} 19. Qe3 {[%clk 0:01:11]}  b6 {[%clk 0:01:46]} 20. Nxe4 {[%clk 0:00:58]}  fxe4 {[%clk 0:01:43]} 21. g4 {[%clk 0:00:57]}  c5 {[%clk 0:01:40]} 22. f5 {[%clk 0:00:49]}  cxd4 {[%clk 0:01:36]} 23. cxd4 {[%clk 0:00:49]}  Rac8 {[%clk 0:01:34]} 24. Re2 {[%clk 0:00:43]}  b5 {[%clk 0:01:09]} 25. Ref2 {[%clk 0:00:43]}  Rf6 {[%clk 0:00:57]} 26. g5 {[%clk 0:00:32]}  hxg5 {[%clk 0:00:58]} 27. Qxg5 {[%clk 0:00:32]}  Nc6 {[%clk 0:00:46]} 28. Rg2 {[%clk 0:00:00]}  Rc7 {[%clk 0:00:33]} 0-1


[Site "https://www.chess.com"]

[Event "Titled Tuesday Blitz August 08 Late 2023"]
[White "Muhammad Shahzeb"]
[Black "ArtemDyachuk"]
[WhiteFideId "7804806"]
[WhiteElo "2403"]
[BlackElo "2530"]
[Result "0-1"]
[Round "5"]
[TimeControl "180+1"]
[Date "2023.08.08"]
[WhiteClock "0:00:00"]
[BlackClock "0:00:20"]
[Board "97"]

1. e4 {[%clk 0:03:00]}  c6 {[%clk 0:02:59]} 2. d4 {[%clk 0:03:00]}  d5 {[%clk 0:02:58]} 3. exd5 {[%clk 0:03:00]}  cxd5 {[%clk 0:02:58]} 4. c4 {[%clk 0:03:01]}  Nf6 {[%clk 0:02:58]} 5. Nc3 {[%clk 0:03:02]}  e6 {[%clk 0:02:57]} 6. Nf3 {[%clk 0:02:58]}  Bb4 {[%clk 0:02:57]} 7. Qc2 {[%clk 0:02:56]}  O-O {[%clk 0:02:53]} 8. Bg5 {[%clk 0:02:55]}  h6 {[%clk 0:02:52]} 9. Bh4 {[%clk 0:02:54]}  b6 {[%clk 0:02:41]} 10. Bxf6 {[%clk 0:02:29]}  Qxf6 {[%clk 0:02:39]} 11. cxd5 {[%clk 0:02:30]}  exd5 {[%clk 0:02:38]} 12. Be2 {[%clk 0:02:29]}  Bf5 {[%clk 0:02:37]} 13. Qb3 {[%clk 0:02:28]}  Bxc3+ {[%clk 0:02:33]} 14. Qxc3 {[%clk 0:02:27]}  Rc8 {[%clk 0:02:27]} 15. Qb3 {[%clk 0:02:24]}  Nc6 {[%clk 0:02:26]} 16. O-O {[%clk 0:02:20]}  Be4 {[%clk 0:01:39]} 17. Rad1 {[%clk 0:01:11]}  Bxf3 {[%clk 0:01:34]} 18. Bxf3 {[%clk 0:01:11]}  Nxd4 {[%clk 0:01:32]} 19. Qxd5 {[%clk 0:00:43]}  Nxf3+ {[%clk 0:01:31]} 20. gxf3 {[%clk 0:00:26]}  Qxb2 {[%clk 0:01:17]} 21. Rfe1 {[%clk 0:00:26]}  Qf6 {[%clk 0:01:10]} 22. Qb3 {[%clk 0:00:19]}  Rc3 {[%clk 0:01:04]} 23. Qd5 {[%clk 0:00:19]}  Qxf3 {[%clk 0:01:02]} 24. Re4 {[%clk 0:00:14]}  Rf8 {[%clk 0:00:45]} 25. Qe5 {[%clk 0:00:06]}  Rc5 {[%clk 0:00:43]} 26. Qd4 {[%clk 0:00:04]}  Rg5+ {[%clk 0:00:37]} 27. Kf1 {[%clk 0:00:04]}  Rg2 {[%clk 0:00:33]} 28. Rf4 {[%clk 0:00:00]}  Rxf2+ {[%clk 0:00:25]} 29. Qxf2 {[%clk 0:00:01]}  Qxd1+ {[%clk 0:00:25]} 30. Kg2 {[%clk 0:00:02]}  Qd5+ {[%clk 0:00:23]} 31. Rf3 {[%clk 0:00:03]}  Re8 {[%clk 0:00:23]} 32. Qg3 {[%clk 0:00:01]}  Re2+ {[%clk 0:00:20]} 33. Kh3 {[%clk 0:00:00]}  Qh5+ {[%clk 0:00:20]} 0-1


[Site "https://www.chess.com"]

[Event "Titled Tuesday Blitz August 08 Late 2023"]
[White "Grossboss19"]
[Black "Ncatt"]
[WhiteElo "2524"]
[BlackElo "2385"]
[Result "1-0"]
[Round "5"]
[TimeControl "180+1"]
[Date "2023.08.08"]
[WhiteClock "0:00:21"]
[BlackClock "0:00:28"]
[Board "99"]

1. e4 {[%clk 0:02:54]}  c5 {[%clk 0:03:00]} 2. Nc3 {[%clk 0:02:52]}  Nc6 {[%clk 0:02:59]} 3. Nge2 {[%clk 0:02:52]}  g6 {[%clk 0:02:59]} 4. g3 {[%clk 0:02:52]}  Bg7 {[%clk 0:02:59]} 5. Bg2 {[%clk 0:02:52]}  e5 {[%clk 0:02:57]} 6. Nd5 {[%clk 0:02:47]}  Nge7 {[%clk 0:02:57]} 7. Nxe7 {[%clk 0:02:46]}  Qxe7 {[%clk 0:02:56]} 8. O-O {[%clk 0:02:46]}  O-O {[%clk 0:02:56]} 9. c3 {[%clk 0:02:45]}  d6 {[%clk 0:02:55]} 10. d3 {[%clk 0:02:43]}  Be6 {[%clk 0:02:51]} 11. f4 {[%clk 0:02:42]}  f5 {[%clk 0:02:50]} 12. Be3 {[%clk 0:02:38]}  Rae8 {[%clk 0:02:49]} 13. Qd2 {[%clk 0:02:33]}  fxe4 {[%clk 0:02:38]} 14. dxe4 {[%clk 0:02:32]}  exf4 {[%clk 0:02:31]} 15. Nxf4 {[%clk 0:02:27]}  Bc4 {[%clk 0:02:28]} 16. Rf2 {[%clk 0:02:22]}  Ne5 {[%clk 0:02:26]} 17. b3 {[%clk 0:02:14]}  Bf7 {[%clk 0:02:23]} 18. h3 {[%clk 0:02:11]}  b5 {[%clk 0:02:05]} 19. Rd1 {[%clk 0:02:07]}  Rd8 {[%clk 0:02:03]} 20. Nd5 {[%clk 0:01:56]}  Bxd5 {[%clk 0:01:55]} 21. Qxd5+ {[%clk 0:01:57]}  Kh8 {[%clk 0:01:53]} 22. Rf4 {[%clk 0:01:48]}  Rxf4 {[%clk 0:01:48]} 23. gxf4 {[%clk 0:01:45]}  Nf7 {[%clk 0:01:47]} 24. c4 {[%clk 0:01:42]}  bxc4 {[%clk 0:01:44]} 25. bxc4 {[%clk 0:01:43]}  Rb8 {[%clk 0:01:43]} 26. Qd3 {[%clk 0:01:30]}  Rb2 {[%clk 0:01:33]} 27. Rb1 {[%clk 0:01:29]}  Qb7 {[%clk 0:01:28]} 28. Rxb2 {[%clk 0:01:29]}  Qxb2 {[%clk 0:01:28]} 29. Qd5 {[%clk 0:01:28]}  Qf6 {[%clk 0:01:19]} 30. Qa8+ {[%clk 0:01:25]}  Nd8 {[%clk 0:01:17]} 31. Qxa7 {[%clk 0:01:17]}  Qa1+ {[%clk 0:01:16]} 32. Kh2 {[%clk 0:01:17]}  Qc3 {[%clk 0:01:07]} 33. Qb8 {[%clk 0:01:12]}  Bf6 {[%clk 0:01:04]} 34. Qxd6 {[%clk 0:01:05]}  Kg7 {[%clk 0:00:58]} 35. e5 {[%clk 0:00:58]}  Bh4 {[%clk 0:00:58]} 36. Qxc5 {[%clk 0:00:51]}  Ne6 {[%clk 0:00:57]} 37. Qa7+ {[%clk 0:00:50]}  Kh6 {[%clk 0:00:47]} 38. f5+ {[%clk 0:00:46]}  g5 {[%clk 0:00:36]} 39. fxe6 {[%clk 0:00:27]}  Qe1 {[%clk 0:00:35]} 40. Bg1 {[%clk 0:00:22]}  Qxe5+ {[%clk 0:00:30]} 41. Kh1 {[%clk 0:00:22]}  g4 {[%clk 0:00:30]} 42. Qe3+ {[%clk 0:00:21]}  Qxe3 {[%clk 0:00:29]} 43. Bxe3+ {[%clk 0:00:21]}  Kg6 {[%clk 0:00:28]} 44. hxg4 {[%clk 0:00:21]} 1-0


[Site "https://www.chess.com"]

[Event "Titled Tuesday Blitz August 08 Late 2023"]
[White "Dwilewicz, Katarzyna"]
[Black "Dragomirescu, Robin-Alexandru"]
[WhiteFideId "1148486"]
[BlackFideId "1213849"]
[WhiteElo "2381"]
[BlackElo "2517"]
[Result "1-0"]
[Round "5"]
[TimeControl "180+1"]
[Date "2023.08.08"]
[WhiteClock "0:00:05"]
[BlackClock "0:00:23"]
[Board "100"]

1. e4 {[%clk 0:02:57]}  g6 {[%clk 0:03:00]} 2. d4 {[%clk 0:02:56]}  Nf6 {[%clk 0:02:57]} 3. e5 {[%clk 0:02:56]}  Nh5 {[%clk 0:02:57]} 4. Nc3 {[%clk 0:02:54]}  d6 {[%clk 0:02:57]} 5. Nf3 {[%clk 0:02:50]}  dxe5 {[%clk 0:02:56]} 6. Nxe5 {[%clk 0:02:50]}  Nf6 {[%clk 0:02:57]} 7. Bc4 {[%clk 0:02:49]}  e6 {[%clk 0:02:55]} 8. Bg5 {[%clk 0:02:43]}  h6 {[%clk 0:02:52]} 9. Bh4 {[%clk 0:02:40]}  Bg7 {[%clk 0:02:44]} 10. Qd2 {[%clk 0:02:41]}  c6 {[%clk 0:02:43]} 11. O-O-O {[%clk 0:02:40]}  O-O {[%clk 0:02:39]} 12. f3 {[%clk 0:02:38]}  Nbd7 {[%clk 0:02:39]} 13. Qe2 {[%clk 0:02:20]}  a5 {[%clk 0:02:32]} 14. g4 {[%clk 0:02:17]}  Qc7 {[%clk 0:02:15]} 15. Bg3 {[%clk 0:02:15]}  Nxe5 {[%clk 0:02:11]} 16. Bxe5 {[%clk 0:02:11]}  Qe7 {[%clk 0:02:10]} 17. h4 {[%clk 0:02:09]}  b5 {[%clk 0:02:10]} 18. Bd3 {[%clk 0:02:08]}  b4 {[%clk 0:02:07]} 19. Ne4 {[%clk 0:02:08]}  Nxe4 {[%clk 0:02:05]} 20. Qxe4 {[%clk 0:02:01]}  Bb7 {[%clk 0:01:58]} 21. h5 {[%clk 0:02:01]}  c5 {[%clk 0:01:58]} 22. Qf4 {[%clk 0:01:57]}  g5 {[%clk 0:01:55]} 23. Qe3 {[%clk 0:01:54]}  cxd4 {[%clk 0:01:54]} 24. Qxd4 {[%clk 0:01:47]}  Rfd8 {[%clk 0:01:52]} 25. Qe3 {[%clk 0:01:48]}  Rac8 {[%clk 0:01:43]} 26. Kb1 {[%clk 0:01:43]}  Bd5 {[%clk 0:01:30]} 27. Rhe1 {[%clk 0:01:41]}  Qc5 {[%clk 0:01:28]} 28. Qxc5 {[%clk 0:01:35]}  Rxc5 {[%clk 0:01:27]} 29. Bxg7 {[%clk 0:01:31]}  Kxg7 {[%clk 0:01:28]} 30. Be4 {[%clk 0:01:31]}  a4 {[%clk 0:01:20]} 31. Bxd5 {[%clk 0:01:18]}  Rcxd5 {[%clk 0:01:20]} 32. Kc1 {[%clk 0:01:12]}  Kf6 {[%clk 0:01:15]} 33. Rxd5 {[%clk 0:01:10]}  Rxd5 {[%clk 0:01:16]} 34. Re4 {[%clk 0:01:11]}  b3 {[%clk 0:01:05]} 35. Rxa4 {[%clk 0:00:58]}  bxa2 {[%clk 0:01:01]} 36. Rxa2 {[%clk 0:00:58]}  Rd4 {[%clk 0:00:59]} 37. Ra3 {[%clk 0:00:51]}  Ke5 {[%clk 0:00:59]} 38. Rd3 {[%clk 0:00:50]}  Rc4 {[%clk 0:00:50]} 39. Kd2 {[%clk 0:00:46]}  Kf4 {[%clk 0:00:49]} 40. c3 {[%clk 0:00:37]}  e5 {[%clk 0:00:47]} 41. b4 {[%clk 0:00:36]}  f5 {[%clk 0:00:44]} 42. gxf5 {[%clk 0:00:28]}  Kxf5 {[%clk 0:00:45]} 43. Rd6 {[%clk 0:00:25]}  e4 {[%clk 0:00:40]} 44. fxe4+ {[%clk 0:00:23]}  Kxe4 {[%clk 0:00:41]} 45. Rxh6 {[%clk 0:00:23]}  g4 {[%clk 0:00:40]} 46. Rg6 {[%clk 0:00:23]}  Kf3 {[%clk 0:00:41]} 47. b5 {[%clk 0:00:20]}  g3 {[%clk 0:00:40]} 48. b6 {[%clk 0:00:16]}  Rc8 {[%clk 0:00:30]} 49. h6 {[%clk 0:00:10]}  g2 {[%clk 0:00:30]} 50. h7 {[%clk 0:00:06]}  Kf2 {[%clk 0:00:31]} 51. Rg8 {[%clk 0:00:05]}  g1=Q {[%clk 0:00:30]} 52. Rxg1 {[%clk 0:00:04]}  Kxg1 {[%clk 0:00:30]} 53. b7 {[%clk 0:00:04]}  Rb8 {[%clk 0:00:29]} 54. Ke3 {[%clk 0:00:04]}  Kg2 {[%clk 0:00:27]} 55. c4 {[%clk 0:00:05]}  Kg3 {[%clk 0:00:23]} 56. c5 {[%clk 0:00:05]} 1-0


[Site "https://www.chess.com"]